[Event "January 9 Late 2024"]
[Site "https://www.chess.com"]
[Date "2024.01.09"]
[Round "2"]
[White "Kovacsy, Barnabas"]
[Black "Christiansen, Johan-Sebastian"]
[Result "0-1"]
[Board "59"]
[TimeControl "180+1"]
[WhiteFideId "769290"]
[BlackFideId "1512668"]
[WhiteElo "2585"]
[BlackElo "2894"]
[WhiteTeam "HUN"]
[BlackTeam "NOR"]
[WhiteClock "0:00:00"]
[BlackClock "0:00:25"]

1. e4 {[%clk 0:02:59]}  e5 {[%clk 0:03:00]} 2. Nf3 {[%clk 0:02:59]}  Nc6 {[%clk 0:03:01]} 3. Bb5 {[%clk 0:02:58]}  f5 {[%clk 0:03:01]} 4. d3 {[%clk 0:02:57]}  fxe4 {[%clk 0:03:01]} 5. dxe4 {[%clk 0:02:57]}  Nf6 {[%clk 0:03:02]} 6. O-O {[%clk 0:02:55]}  Bc5 {[%clk 0:03:02]} 7. Nc3 {[%clk 0:02:53]}  d6 {[%clk 0:03:02]} 8. Bc4 {[%clk 0:02:53]}  Na5 {[%clk 0:03:02]} 9. Bb3 {[%clk 0:02:48]}  Nxb3 {[%clk 0:03:01]} 10. axb3 {[%clk 0:02:49]}  O-O {[%clk 0:03:02]} 11. Qd3 {[%clk 0:02:47]}  Kh8 {[%clk 0:03:00]} 12. Bg5 {[%clk 0:02:44]}  a6 {[%clk 0:02:52]} 13. Nd5 {[%clk 0:02:33]}  Be6 {[%clk 0:02:53]} 14. Nxf6 {[%clk 0:02:30]}  gxf6 {[%clk 0:02:52]} 15. Be3 {[%clk 0:02:30]}  Bxe3 {[%clk 0:02:49]} 16. Qxe3 {[%clk 0:02:30]}  f5 {[%clk 0:02:34]} 17. exf5 {[%clk 0:02:21]}  Bxf5 {[%clk 0:02:32]} 18. c3 {[%clk 0:02:21]}  Qf6 {[%clk 0:02:32]} 19. Nd2 {[%clk 0:02:15]}  Rg8 {[%clk 0:02:28]} 20. Ne4 {[%clk 0:02:13]}  Qg6 {[%clk 0:02:19]} 21. Ng3 {[%clk 0:02:13]}  Be6 {[%clk 0:02:20]} 22. b4 {[%clk 0:02:12]}  h5 {[%clk 0:02:20]} 23. h4 {[%clk 0:02:11]}  Raf8 {[%clk 0:02:18]} 24. Rad1 {[%clk 0:01:59]}  Rf4 {[%clk 0:02:16]} 25. Qa7 {[%clk 0:01:52]}  Bc8 {[%clk 0:01:51]} 26. Qb8 {[%clk 0:01:36]}  Qf7 {[%clk 0:01:51]} 27. Qa7 {[%clk 0:01:01]}  Rxh4 {[%clk 0:01:51]} 28. Qe3 {[%clk 0:01:01]}  Rf4 {[%clk 0:01:45]} 29. Ne2 {[%clk 0:00:59]}  Rf6 {[%clk 0:01:37]} 30. Ng3 {[%clk 0:00:54]}  h4 {[%clk 0:01:31]} 31. Ne4 {[%clk 0:00:54]}  Rfg6 {[%clk 0:01:31]} 32. g3 {[%clk 0:00:54]}  Bg4 {[%clk 0:01:26]} 33. Rd3 {[%clk 0:00:53]}  Bf5 {[%clk 0:01:25]} 34. Kg2 {[%clk 0:00:48]}  Qh7 {[%clk 0:01:15]} 35. f3 {[%clk 0:00:03]}  Rxg3+ {[%clk 0:00:52]} 36. Nxg3 {[%clk 0:00:03]}  Rxg3+ {[%clk 0:00:53]} 37. Kf2 {[%clk 0:00:03]}  Bxd3 {[%clk 0:00:54]} 38. Rh1 {[%clk 0:00:04]}  Bf5 {[%clk 0:00:34]} 39. Qa7 {[%clk 0:00:04]}  Qe7 {[%clk 0:00:30]} 40. Qxb7 {[%clk 0:00:04]}  e4 {[%clk 0:00:29]} 41. Qb8+ {[%clk 0:00:04]}  Kg7 {[%clk 0:00:29]} 42. Qa7 {[%clk 0:00:03]}  Rxf3+ {[%clk 0:00:29]} 43. Ke2 {[%clk 0:00:04]}  Rg3 {[%clk 0:00:29]} 44. Qd4+ {[%clk 0:00:03]}  Qe5 {[%clk 0:00:29]} 45. Qxe5+ {[%clk 0:00:03]}  dxe5 {[%clk 0:00:29]} 46. Rxh4 {[%clk 0:00:04]}  e3 {[%clk 0:00:26]} 47. c4 {[%clk 0:00:04]}  Bg4+ {[%clk 0:00:26]} 48. Kd3 {[%clk 0:00:04]}  e2+ {[%clk 0:00:26]} 49. Kd2 {[%clk 0:00:00]}  Rg1 {[%clk 0:00:25]} 0-1

[Event "January 9 Late 2024"]
[Site "https://www.chess.com"]
[Date "2024.01.09"]
[Round "2"]
[White "Durarbayli, Vasif"]
[Black "Ambartsumova, Karina"]
[Result "1-0"]
[Board "66"]
[TimeControl "180+1"]
[WhiteFideId "13402935"]
[BlackFideId "4166299"]
[WhiteElo "2861"]
[BlackElo "2574"]
[WhiteTeam "AZE"]
[BlackTeam "RUS"]
[WhiteClock "0:00:15"]
[BlackClock "0:00:02"]

1. c4 {[%clk 0:03:00]}  e6 {[%clk 0:02:59]} 2. e4 {[%clk 0:02:59]}  c5 {[%clk 0:02:56]} 3. Nc3 {[%clk 0:02:54]}  Nc6 {[%clk 0:02:56]} 4. Nf3 {[%clk 0:02:54]}  g5 {[%clk 0:02:55]} 5. d3 {[%clk 0:02:10]}  g4 {[%clk 0:02:44]} 6. Ng1 {[%clk 0:02:10]}  Nf6 {[%clk 0:02:40]} 7. h3 {[%clk 0:02:07]}  h5 {[%clk 0:02:29]} 8. hxg4 {[%clk 0:02:04]}  Nxg4 {[%clk 0:02:27]} 9. Be2 {[%clk 0:02:03]}  Bg7 {[%clk 0:02:14]} 10. Bxg4 {[%clk 0:01:56]}  hxg4 {[%clk 0:02:15]} 11. Rxh8+ {[%clk 0:01:56]}  Bxh8 {[%clk 0:02:16]} 12. Qxg4 {[%clk 0:01:56]}  Nd4 {[%clk 0:01:46]} 13. Kd1 {[%clk 0:01:00]}  Bf6 {[%clk 0:01:27]} 14. Nf3 {[%clk 0:00:54]}  Nxf3 {[%clk 0:01:19]} 15. gxf3 {[%clk 0:00:53]}  d6 {[%clk 0:01:12]} 16. Ke2 {[%clk 0:00:52]}  Bd7 {[%clk 0:01:01]} 17. Bf4 {[%clk 0:00:45]}  Ke7 {[%clk 0:00:52]} 18. Rh1 {[%clk 0:00:41]}  Qb6 {[%clk 0:00:47]} 19. Bc1 {[%clk 0:00:32]}  Qa5 {[%clk 0:00:35]} 20. Bg5 {[%clk 0:00:29]}  Qb6 {[%clk 0:00:06]} 21. Bxf6+ {[%clk 0:00:24]}  Kxf6 {[%clk 0:00:07]} 22. Qh4+ {[%clk 0:00:24]}  Ke5 {[%clk 0:00:05]} 23. Ke3 {[%clk 0:00:16]}  d5 {[%clk 0:00:02]} 24. Qf4# {[%clk 0:00:15]} 1-0

[Event "January 9 Late 2024"]
[Site "https://www.chess.com"]
[Date "2024.01.09"]
[Round "2"]
[White "Lobanov, Sergei"]
[Black "Sowa, Ryan"]
[Result "1/2-1/2"]
[Board "69"]
[TimeControl "180+1"]
[WhiteFideId "24183750"]
[BlackFideId "30901693"]
[WhiteElo "2852"]
[BlackElo "2570"]
[WhiteTeam "FID"]
[BlackTeam "USA"]
[WhiteClock "0:00:08"]
[BlackClock "0:00:22"]

1. d4 {[%clk 0:03:00]}  b6 {[%clk 0:03:00]} 2. e4 {[%clk 0:03:00]}  Bb7 {[%clk 0:03:01]} 3. Bd3 {[%clk 0:02:58]}  e6 {[%clk 0:03:01]} 4. Ne2 {[%clk 0:02:54]}  c5 {[%clk 0:03:00]} 5. c3 {[%clk 0:02:55]}  Nf6 {[%clk 0:02:51]} 6. Ng3 {[%clk 0:02:52]}  d6 {[%clk 0:02:29]} 7. O-O {[%clk 0:02:50]}  Nbd7 {[%clk 0:02:29]} 8. Be3 {[%clk 0:02:47]}  Be7 {[%clk 0:02:23]} 9. Nd2 {[%clk 0:02:47]}  O-O {[%clk 0:02:23]} 10. f4 {[%clk 0:02:47]}  cxd4 {[%clk 0:02:11]} 11. cxd4 {[%clk 0:02:46]}  e5 {[%clk 0:02:05]} 12. Nf5 {[%clk 0:02:47]}  Re8 {[%clk 0:02:01]} 13. Nxe7+ {[%clk 0:02:25]}  Qxe7 {[%clk 0:02:01]} 14. fxe5 {[%clk 0:02:24]}  dxe5 {[%clk 0:02:01]} 15. d5 {[%clk 0:02:25]}  h6 {[%clk 0:01:59]} 16. Qf3 {[%clk 0:02:14]}  Rf8 {[%clk 0:01:57]} 17. Qg3 {[%clk 0:01:45]}  Kh8 {[%clk 0:01:56]} 18. Rae1 {[%clk 0:01:33]}  Ne8 {[%clk 0:01:50]} 19. Nf3 {[%clk 0:01:30]}  Nd6 {[%clk 0:01:49]} 20. Qh3 {[%clk 0:01:14]}  Nc5 {[%clk 0:01:32]} 21. Bxc5 {[%clk 0:00:51]}  bxc5 {[%clk 0:01:31]} 22. Qg3 {[%clk 0:00:47]}  Rae8 {[%clk 0:01:21]} 23. Nd2 {[%clk 0:00:47]}  Qc7 {[%clk 0:01:15]} 24. Nc4 {[%clk 0:00:45]}  Nxc4 {[%clk 0:01:08]} 25. Bxc4 {[%clk 0:00:46]}  Bc8 {[%clk 0:01:04]} 26. b3 {[%clk 0:00:44]}  Qd6 {[%clk 0:01:02]} 27. Qd3 {[%clk 0:00:40]}  Bd7 {[%clk 0:01:02]} 28. Re3 {[%clk 0:00:40]}  a5 {[%clk 0:00:53]} 29. a4 {[%clk 0:00:37]}  f6 {[%clk 0:00:50]} 30. Rc1 {[%clk 0:00:28]}  f5 {[%clk 0:00:47]} 31. exf5 {[%clk 0:00:27]}  Bxf5 {[%clk 0:00:48]} 32. Qe2 {[%clk 0:00:28]}  e4 {[%clk 0:00:48]} 33. Rf1 {[%clk 0:00:25]}  Bg6 {[%clk 0:00:47]} 34. Qe1 {[%clk 0:00:20]}  Rxf1+ {[%clk 0:00:47]} 35. Qxf1 {[%clk 0:00:20]}  Rf8 {[%clk 0:00:47]} 36. Qe1 {[%clk 0:00:21]}  Qe5 {[%clk 0:00:45]} 37. Qxa5 {[%clk 0:00:20]}  Qd4 {[%clk 0:00:30]} 38. Qe1 {[%clk 0:00:20]}  Bf7 {[%clk 0:00:27]} 39. a5 {[%clk 0:00:16]}  Bxd5 {[%clk 0:00:28]} 40. Bxd5 {[%clk 0:00:17]}  Qxd5 {[%clk 0:00:28]} 41. Rxe4 {[%clk 0:00:17]}  Qxb3 {[%clk 0:00:29]} 42. Re8 {[%clk 0:00:14]}  Rxe8 {[%clk 0:00:25]} 43. Qxe8+ {[%clk 0:00:14]}  Kh7 {[%clk 0:00:26]} 44. Qe4+ {[%clk 0:00:15]}  Kh8 {[%clk 0:00:27]} 45. a6 {[%clk 0:00:08]}  Qd1+ {[%clk 0:00:24]} 46. Kf2 {[%clk 0:00:09]}  Qd2+ {[%clk 0:00:25]} 47. Kg3 {[%clk 0:00:08]}  Qd6+ {[%clk 0:00:21]} 48. Qf4 {[%clk 0:00:07]}  Qxa6 {[%clk 0:00:21]} 49. Qf8+ {[%clk 0:00:07]}  Kh7 {[%clk 0:00:21]} 50. Qxc5 {[%clk 0:00:08]}  Qg6+ {[%clk 0:00:20]} 51. Kf3 {[%clk 0:00:08]}  Qf6+ {[%clk 0:00:21]} 52. Kg3 {[%clk 0:00:07]}  Qg6+ {[%clk 0:00:21]} 53. Kf3 {[%clk 0:00:08]}  Qf6+ {[%clk 0:00:21]} 54. Kg3 {[%clk 0:00:08]}  Qg6+ {[%clk 0:00:22]} 1/2-1/2

[Event "January 9 Late 2024"]
[Site "https://www.chess.com"]
[Date "2024.01.09"]
[Round "2"]
[White "Klukin, Kirill"]
[Black "Potapova, Margarita"]
[Result "1-0"]
[Board "71"]
[TimeControl "180+1"]
[WhiteFideId "24199273"]
[BlackFideId "14126869"]
[WhiteElo "2847"]
[BlackElo "2569"]
[WhiteTeam "RUS"]
[BlackTeam "RUS"]
[WhiteClock "0:01:13"]
[BlackClock "0:00:01"]

1. f4 {[%clk 0:03:00]}  d5 {[%clk 0:02:59]} 2. Nf3 {[%clk 0:03:00]}  Nf6 {[%clk 0:03:00]} 3. g3 {[%clk 0:03:01]}  g6 {[%clk 0:03:00]} 4. Bg2 {[%clk 0:03:02]}  Bg7 {[%clk 0:03:01]} 5. O-O {[%clk 0:03:03]}  O-O {[%clk 0:03:02]} 6. d3 {[%clk 0:03:03]}  c5 {[%clk 0:02:59]} 7. Nc3 {[%clk 0:03:04]}  Nc6 {[%clk 0:02:59]} 8. e4 {[%clk 0:03:04]}  dxe4 {[%clk 0:02:57]} 9. dxe4 {[%clk 0:03:05]}  Qxd1 {[%clk 0:02:58]} 10. Rxd1 {[%clk 0:03:06]}  Bg4 {[%clk 0:02:58]} 11. Be3 {[%clk 0:03:04]}  Nd4 {[%clk 0:01:45]} 12. Bxd4 {[%clk 0:02:59]}  cxd4 {[%clk 0:01:45]} 13. Rxd4 {[%clk 0:03:00]}  Bxf3 {[%clk 0:01:36]} 14. Bxf3 {[%clk 0:02:59]}  Rfd8 {[%clk 0:01:07]} 15. Rad1 {[%clk 0:02:53]}  Rxd4 {[%clk 0:01:04]} 16. Rxd4 {[%clk 0:02:54]}  e5 {[%clk 0:00:39]} 17. Rd6 {[%clk 0:02:54]}  Re8 {[%clk 0:00:31]} 18. Kf2 {[%clk 0:02:44]}  h5 {[%clk 0:00:28]} 19. fxe5 {[%clk 0:01:58]}  Rxe5 {[%clk 0:00:27]} 20. Ke2 {[%clk 0:01:59]}  b6 {[%clk 0:00:21]} 21. Kd3 {[%clk 0:01:59]}  g5 {[%clk 0:00:13]} 22. Rd8+ {[%clk 0:01:56]}  Kh7 {[%clk 0:00:12]} 23. Nd5 {[%clk 0:01:57]}  Kg6 {[%clk 0:00:08]} 24. c4 {[%clk 0:01:51]}  g4 {[%clk 0:00:08]} 25. Bd1 {[%clk 0:01:52]}  Nxe4 {[%clk 0:00:07]} 26. Bc2 {[%clk 0:01:49]}  f5 {[%clk 0:00:07]} 27. Nf4+ {[%clk 0:01:39]}  Kf7 {[%clk 0:00:08]} 28. b4 {[%clk 0:01:40]}  a5 {[%clk 0:00:07]} 29. a3 {[%clk 0:01:40]}  axb4 {[%clk 0:00:07]} 30. axb4 {[%clk 0:01:41]}  Bf8 {[%clk 0:00:08]} 31. Nd5 {[%clk 0:01:32]}  h4 {[%clk 0:00:05]} 32. gxh4 {[%clk 0:01:29]}  Nf2+ {[%clk 0:00:05]} 33. Kc3 {[%clk 0:01:28]}  Bg7 {[%clk 0:00:05]} 34. Kb3 {[%clk 0:01:27]}  Nh3 {[%clk 0:00:03]} 35. Rd7+ {[%clk 0:01:27]}  Kg6 {[%clk 0:00:03]} 36. Ne7+ {[%clk 0:01:27]}  Kf6 {[%clk 0:00:02]} 37. Nxf5 {[%clk 0:01:27]}  Bf8 {[%clk 0:00:02]} 38. Rb7 {[%clk 0:01:21]}  Nf4 {[%clk 0:00:02]} 39. Rxb6+ {[%clk 0:01:21]}  Re6 {[%clk 0:00:03]} 40. Rxe6+ {[%clk 0:01:20]}  Nxe6 {[%clk 0:00:04]} 41. c5 {[%clk 0:01:20]}  Nc7 {[%clk 0:00:03]} 42. Kc4 {[%clk 0:01:20]}  Ke5 {[%clk 0:00:04]} 43. h5 {[%clk 0:01:19]}  Ne6 {[%clk 0:00:04]} 44. h6 {[%clk 0:01:19]}  Ng5 {[%clk 0:00:05]} 45. Nd4 {[%clk 0:01:18]}  Nf3 {[%clk 0:00:04]} 46. Nc6+ {[%clk 0:01:17]}  Kf4 {[%clk 0:00:03]} 47. h7 {[%clk 0:01:18]}  Bg7 {[%clk 0:00:03]} 48. b5 {[%clk 0:01:18]}  Nxh2 {[%clk 0:00:03]} 49. Nd4 {[%clk 0:01:14]}  g3 {[%clk 0:00:03]} 50. Ne6+ {[%clk 0:01:14]}  Kf3 {[%clk 0:00:03]} 51. Nxg7 {[%clk 0:01:12]}  g2 {[%clk 0:00:03]} 52. h8=Q {[%clk 0:01:13]}  g1=Q {[%clk 0:00:04]} 53. Qh5+ {[%clk 0:01:14]}  Ng4 {[%clk 0:00:04]} 54. Qd5+ {[%clk 0:01:13]}  Kg3 {[%clk 0:00:03]} 55. Nf5+ {[%clk 0:01:12]}  Kh3 {[%clk 0:00:03]} 56. Qd3+ {[%clk 0:01:12]}  Kh2 {[%clk 0:00:03]} 57. Qg3+ {[%clk 0:01:11]}  Qxg3 {[%clk 0:00:02]} 58. Nxg3 {[%clk 0:01:12]}  Kxg3 {[%clk 0:00:03]} 59. b6 {[%clk 0:01:13]}  Ne5+ {[%clk 0:00:04]} 60. Kd5 {[%clk 0:01:13]}  Kf4 {[%clk 0:00:01]} 61. c6 {[%clk 0:01:13]} 1-0

[Event "January 9 Late 2024"]
[Site "https://www.chess.com"]
[Date "2024.01.09"]
[Round "2"]
[White "Rogov, Matfey"]
[Black "Bryakin, Mikhail"]
[Result "1-0"]
[Board "72"]
[TimeControl "180+1"]
[WhiteFideId "44191308"]
[BlackFideId "4165314"]
[WhiteElo "2569"]
[BlackElo "2844"]
[WhiteTeam "RUS"]
[BlackTeam "SRB"]
[WhiteClock "0:00:11"]
[BlackClock "0:00:26"]

1. e4 {[%clk 0:03:00]}  Nf6 {[%clk 0:02:48]} 2. e5 {[%clk 0:03:00]}  Nd5 {[%clk 0:02:46]} 3. f4 {[%clk 0:03:00]}  d6 {[%clk 0:02:46]} 4. Nf3 {[%clk 0:02:59]}  Nc6 {[%clk 0:02:39]} 5. d4 {[%clk 0:02:56]}  Bg4 {[%clk 0:02:38]} 6. c4 {[%clk 0:02:43]}  Bxf3 {[%clk 0:02:30]} 7. gxf3 {[%clk 0:01:59]}  Nb6 {[%clk 0:02:29]} 8. d5 {[%clk 0:01:57]}  Nb8 {[%clk 0:02:28]} 9. e6 {[%clk 0:01:53]}  fxe6 {[%clk 0:02:19]} 10. dxe6 {[%clk 0:01:53]}  c5 {[%clk 0:02:17]} 11. a4 {[%clk 0:01:49]}  Nc6 {[%clk 0:02:09]} 12. a5 {[%clk 0:01:44]}  Nc8 {[%clk 0:02:09]} 13. Qd5 {[%clk 0:01:13]}  Nxa5 {[%clk 0:01:53]} 14. Nc3 {[%clk 0:01:01]}  Qb6 {[%clk 0:01:45]} 15. Rxa5 {[%clk 0:00:34]}  Qxa5 {[%clk 0:01:45]} 16. Qxb7 {[%clk 0:00:34]}  Nb6 {[%clk 0:01:33]} 17. Bd2 {[%clk 0:00:34]}  Rc8 {[%clk 0:01:28]} 18. Nd5 {[%clk 0:00:20]}  Qa1+ {[%clk 0:01:23]} 19. Ke2 {[%clk 0:00:16]}  Qa4 {[%clk 0:00:27]} 20. Nxb6 {[%clk 0:00:13]}  Qc6 {[%clk 0:00:28]} 21. Qd7+ {[%clk 0:00:10]}  Qxd7 {[%clk 0:00:26]} 22. exd7+ {[%clk 0:00:11]} 1-0

[Event "January 9 Late 2024"]
[Site "https://www.chess.com"]
[Date "2024.01.09"]
[Round "2"]
[White "Pham, Le Thao Nguyen"]
[Black "Seemann, Jakub"]
[Result "1-0"]
[Board "74"]
[TimeControl "180+1"]
[WhiteFideId "12401226"]
[BlackFideId "21874697"]
[WhiteElo "2566"]
[BlackElo "2842"]
[WhiteTeam "VIE"]
[BlackTeam "POL"]
[WhiteClock "0:00:10"]
[BlackClock "0:00:00"]

1. d4 {[%clk 0:03:00]}  Nf6 {[%clk 0:02:59]} 2. Nf3 {[%clk 0:03:00]}  d5 {[%clk 0:02:52]} 3. Bf4 {[%clk 0:02:54]}  Bf5 {[%clk 0:02:45]} 4. c4 {[%clk 0:02:53]}  e6 {[%clk 0:02:42]} 5. Nc3 {[%clk 0:02:54]}  Be7 {[%clk 0:02:41]} 6. e3 {[%clk 0:02:48]}  O-O {[%clk 0:02:41]} 7. Qb3 {[%clk 0:02:42]}  c5 {[%clk 0:02:33]} 8. Qxb7 {[%clk 0:02:22]}  Nbd7 {[%clk 0:02:32]} 9. h3 {[%clk 0:02:18]}  Ne4 {[%clk 0:02:19]} 10. cxd5 {[%clk 0:01:31]}  cxd4 {[%clk 0:02:18]} 11. exd4 {[%clk 0:01:30]}  Nxc3 {[%clk 0:01:36]} 12. bxc3 {[%clk 0:01:22]}  Qa5 {[%clk 0:01:35]} 13. Rc1 {[%clk 0:01:14]}  Ba3 {[%clk 0:01:30]} 14. Qb5 {[%clk 0:00:43]}  Qxb5 {[%clk 0:01:29]} 15. Bxb5 {[%clk 0:00:44]}  Bxc1 {[%clk 0:01:30]} 16. Bxc1 {[%clk 0:00:44]}  Nb6 {[%clk 0:01:30]} 17. d6 {[%clk 0:00:40]}  Rfd8 {[%clk 0:01:28]} 18. Ba3 {[%clk 0:00:39]}  Rac8 {[%clk 0:01:26]} 19. Kd2 {[%clk 0:00:36]}  Nc4+ {[%clk 0:01:25]} 20. Bxc4 {[%clk 0:00:36]}  Rxc4 {[%clk 0:01:25]} 21. Bc5 {[%clk 0:00:32]}  f6 {[%clk 0:01:22]} 22. Re1 {[%clk 0:00:26]}  Rb4 {[%clk 0:01:21]} 23. cxb4 {[%clk 0:00:25]}  Kf7 {[%clk 0:01:10]} 24. Kc3 {[%clk 0:00:25]}  h5 {[%clk 0:01:04]} 25. a4 {[%clk 0:00:25]}  g5 {[%clk 0:01:04]} 26. Nd2 {[%clk 0:00:24]}  g4 {[%clk 0:01:01]} 27. hxg4 {[%clk 0:00:25]}  hxg4 {[%clk 0:01:02]} 28. b5 {[%clk 0:00:21]}  Ke8 {[%clk 0:00:56]} 29. Nc4 {[%clk 0:00:20]}  Kd7 {[%clk 0:00:50]} 30. Ne3 {[%clk 0:00:20]}  Bg6 {[%clk 0:00:41]} 31. Nxg4 {[%clk 0:00:20]}  Rf8 {[%clk 0:00:41]} 32. f3 {[%clk 0:00:20]}  Bf5 {[%clk 0:00:40]} 33. Ne3 {[%clk 0:00:20]}  Bg6 {[%clk 0:00:40]} 34. g4 {[%clk 0:00:21]}  Rh8 {[%clk 0:00:40]} 35. f4 {[%clk 0:00:19]}  Be4 {[%clk 0:00:39]} 36. Nc4 {[%clk 0:00:14]}  Rh3+ {[%clk 0:00:38]} 37. Kb4 {[%clk 0:00:14]}  Bd5 {[%clk 0:00:37]} 38. g5 {[%clk 0:00:15]}  fxg5 {[%clk 0:00:34]} 39. fxg5 {[%clk 0:00:15]}  Rg3 {[%clk 0:00:33]} 40. Ne5+ {[%clk 0:00:14]}  Kd8 {[%clk 0:00:32]} 41. g6 {[%clk 0:00:15]}  Kc8 {[%clk 0:00:17]} 42. Rf1 {[%clk 0:00:14]}  a6 {[%clk 0:00:13]} 43. bxa6 {[%clk 0:00:12]}  Rb3+ {[%clk 0:00:08]} 44. Ka5 {[%clk 0:00:12]}  Bf3 {[%clk 0:00:00]} 45. g7 {[%clk 0:00:10]} 1-0

[Event "January 9 Late 2024"]
[Site "https://www.chess.com"]
[Date "2024.01.09"]
[Round "2"]
[White "Maltsevskaya, Aleksandra"]
[Black "Remizov, Yaroslav"]
[Result "0-1"]
[Board "77"]
[TimeControl "180+1"]
[WhiteFideId "24174041"]
[BlackFideId "34134015"]
[WhiteElo "2558"]
[BlackElo "2837"]
[WhiteTeam "POL"]
[BlackTeam "RUS"]
[WhiteClock "0:00:00"]
[BlackClock "0:00:25"]

1. e4 {[%clk 0:02:38]}  c5 {[%clk 0:02:59]} 2. Nf3 {[%clk 0:02:37]}  Nc6 {[%clk 0:02:59]} 3. d4 {[%clk 0:02:38]}  cxd4 {[%clk 0:03:00]} 4. Nxd4 {[%clk 0:02:39]}  Nf6 {[%clk 0:03:01]} 5. Nc3 {[%clk 0:02:39]}  e6 {[%clk 0:03:01]} 6. Bg5 {[%clk 0:02:38]}  Qb6 {[%clk 0:02:51]} 7. Nb3 {[%clk 0:02:24]}  Bb4 {[%clk 0:02:50]} 8. Bd3 {[%clk 0:02:24]}  a5 {[%clk 0:02:30]} 9. a3 {[%clk 0:02:12]}  Bxc3+ {[%clk 0:02:29]} 10. bxc3 {[%clk 0:02:12]}  a4 {[%clk 0:02:30]} 11. Nd2 {[%clk 0:02:09]}  Qc5 {[%clk 0:02:25]} 12. Be3 {[%clk 0:01:52]}  Qxc3 {[%clk 0:02:25]} 13. O-O {[%clk 0:01:53]}  d5 {[%clk 0:02:02]} 14. Bg5 {[%clk 0:00:49]}  h6 {[%clk 0:01:58]} 15. Bxf6 {[%clk 0:00:48]}  Qxf6 {[%clk 0:01:58]} 16. exd5 {[%clk 0:00:49]}  exd5 {[%clk 0:01:59]} 17. Re1+ {[%clk 0:00:47]}  Be6 {[%clk 0:01:59]} 18. Rb1 {[%clk 0:00:47]}  Ra7 {[%clk 0:01:47]} 19. Nf3 {[%clk 0:00:16]}  O-O {[%clk 0:01:46]} 20. h3 {[%clk 0:00:16]}  Rd8 {[%clk 0:01:36]} 21. Bb5 {[%clk 0:00:15]}  g6 {[%clk 0:01:31]} 22. Qd2 {[%clk 0:00:14]}  Kg7 {[%clk 0:01:30]} 23. Bxc6 {[%clk 0:00:12]}  bxc6 {[%clk 0:01:30]} 24. Rb6 {[%clk 0:00:13]}  c5 {[%clk 0:01:15]} 25. Ne5 {[%clk 0:00:10]}  c4 {[%clk 0:01:07]} 26. Nc6 {[%clk 0:00:09]}  Rd6 {[%clk 0:01:08]} 27. Qb4 {[%clk 0:00:07]}  Rad7 {[%clk 0:01:05]} 28. Ne5 {[%clk 0:00:07]}  Rxb6 {[%clk 0:01:03]} 29. Qxb6 {[%clk 0:00:07]}  Re7 {[%clk 0:01:02]} 30. Nc6 {[%clk 0:00:07]}  Re8 {[%clk 0:00:56]} 31. Nd4 {[%clk 0:00:05]}  Bd7 {[%clk 0:00:52]} 32. Qxf6+ {[%clk 0:00:06]}  Kxf6 {[%clk 0:00:53]} 33. Rxe8 {[%clk 0:00:06]}  Bxe8 {[%clk 0:00:54]} 34. c3 {[%clk 0:00:07]}  Ke5 {[%clk 0:00:52]} 35. Kf1 {[%clk 0:00:06]}  Ke4 {[%clk 0:00:47]} 36. Ke2 {[%clk 0:00:07]}  h5 {[%clk 0:00:41]} 37. g3 {[%clk 0:00:06]}  h4 {[%clk 0:00:38]} 38. f3+ {[%clk 0:00:07]}  Ke5 {[%clk 0:00:38]} 39. Kf2 {[%clk 0:00:06]}  g5 {[%clk 0:00:35]} 40. gxh4 {[%clk 0:00:03]}  gxh4 {[%clk 0:00:35]} 41. Ke3 {[%clk 0:00:03]}  Bd7 {[%clk 0:00:34]} 42. f4+ {[%clk 0:00:04]}  Kf6 {[%clk 0:00:34]} 43. Nf3 {[%clk 0:00:04]}  Bxh3 {[%clk 0:00:25]} 44. Nxh4 {[%clk 0:00:05]}  Bg4 {[%clk 0:00:25]} 45. Ng2 {[%clk 0:00:05]}  Bf5 {[%clk 0:00:26]} 46. Ne1 {[%clk 0:00:05]}  Be4 {[%clk 0:00:26]} 47. Kd4 {[%clk 0:00:02]}  Kf5 {[%clk 0:00:25]} 48. Ke3 {[%clk 0:00:00]}  Kg4 {[%clk 0:00:25]} 0-1

[Event "January 9 Late 2024"]
[Site "https://www.chess.com"]
[Date "2024.01.09"]
[Round "2"]
[White "Rustemov, Alexander"]
[Black "Silva, Kaua Marques"]
[Result "0-1"]
[Board "79"]
[TimeControl "180+1"]
[WhiteFideId "4119002"]
[BlackFideId "22701168"]
[WhiteElo "2828"]
[BlackElo "2556"]
[WhiteTeam "RUS"]
[BlackTeam "BRA"]
[WhiteClock "0:00:00"]
[BlackClock "0:00:01"]

1. d4 {[%clk 0:03:00]}  Nf6 {[%clk 0:02:57]} 2. c4 {[%clk 0:03:01]}  e6 {[%clk 0:02:57]} 3. Nf3 {[%clk 0:03:01]}  c5 {[%clk 0:02:55]} 4. d5 {[%clk 0:03:01]}  d6 {[%clk 0:02:54]} 5. Nc3 {[%clk 0:03:01]}  g6 {[%clk 0:02:55]} 6. e4 {[%clk 0:03:01]}  Bg7 {[%clk 0:02:54]} 7. h3 {[%clk 0:03:01]}  O-O {[%clk 0:02:54]} 8. Bd3 {[%clk 0:03:01]}  exd5 {[%clk 0:02:55]} 9. cxd5 {[%clk 0:03:01]}  a6 {[%clk 0:02:53]} 10. a4 {[%clk 0:03:01]}  Nbd7 {[%clk 0:02:45]} 11. O-O {[%clk 0:03:01]}  Ne5 {[%clk 0:02:43]} 12. Nxe5 {[%clk 0:02:59]}  dxe5 {[%clk 0:02:44]} 13. Be3 {[%clk 0:02:52]}  Qe7 {[%clk 0:02:34]} 14. a5 {[%clk 0:02:51]}  Bd7 {[%clk 0:02:29]} 15. Be2 {[%clk 0:02:45]}  Rac8 {[%clk 0:02:22]} 16. Qd2 {[%clk 0:02:40]}  Ne8 {[%clk 0:02:17]} 17. d6 {[%clk 0:02:07]}  Qxd6 {[%clk 0:01:27]} 18. Qxd6 {[%clk 0:02:05]}  Nxd6 {[%clk 0:01:28]} 19. Rfd1 {[%clk 0:02:05]}  Rc6 {[%clk 0:01:27]} 20. Na4 {[%clk 0:01:58]}  Rfc8 {[%clk 0:00:43]} 21. Nxc5 {[%clk 0:01:50]}  Rxc5 {[%clk 0:00:43]} 22. Bxc5 {[%clk 0:01:49]}  Rxc5 {[%clk 0:00:44]} 23. Rxd6 {[%clk 0:01:49]}  Bc6 {[%clk 0:00:33]} 24. f3 {[%clk 0:01:16]}  Bh6 {[%clk 0:00:31]} 25. b3 {[%clk 0:01:11]}  Rc2 {[%clk 0:00:22]} 26. Bc4 {[%clk 0:01:10]}  Be3+ {[%clk 0:00:15]} 27. Kh1 {[%clk 0:01:10]}  Bd4 {[%clk 0:00:15]} 28. Rd1 {[%clk 0:01:07]}  Kf8 {[%clk 0:00:11]} 29. Rd8+ {[%clk 0:00:59]}  Kg7 {[%clk 0:00:09]} 30. Bd5 {[%clk 0:00:55]}  Bb5 {[%clk 0:00:01]} 31. Bxb7 {[%clk 0:00:55]}  h5 {[%clk 0:00:01]} 32. Ra8 {[%clk 0:00:44]}  g5 {[%clk 0:00:01]} 33. Bxa6 {[%clk 0:00:44]}  Bd7 {[%clk 0:00:02]} 34. Rd8 {[%clk 0:00:35]}  Be6 {[%clk 0:00:02]} 35. Bc4 {[%clk 0:00:34]}  Bxc4 {[%clk 0:00:02]} 36. bxc4 {[%clk 0:00:34]}  Rxc4 {[%clk 0:00:03]} 37. a6 {[%clk 0:00:22]}  Ra4 {[%clk 0:00:04]} 38. Rd6 {[%clk 0:00:22]}  Bc5 {[%clk 0:00:03]} 39. Rc6 {[%clk 0:00:21]}  Bd4 {[%clk 0:00:03]} 40. g4 {[%clk 0:00:12]}  hxg4 {[%clk 0:00:02]} 41. hxg4 {[%clk 0:00:12]}  Ra3 {[%clk 0:00:02]} 42. Kg2 {[%clk 0:00:12]}  Ra2+ {[%clk 0:00:03]} 43. Kh3 {[%clk 0:00:09]}  Be3 {[%clk 0:00:03]} 44. Rh1 {[%clk 0:00:00]}  Ra3 {[%clk 0:00:01]} 0-1